Cogmind - Beta 17 @@@ ROGUE MODE // 2026.07.28 @ 12:07:25 Player: gortmind Result: Destroyed by G-47 Trooper with Particle Gun Performance ------------- Evolutions (0) 0 Regions Visited (2) 400 Robots Destroyed (18) 90 Value Destroyed (458) 458 Prototype IDs (2) 40 Alien Tech Used (0) 0 Bonus (0) 0 TOTAL SCORE: 988 Bonus ------- None Cogmind --------- Core Integrity 0/250 Matter 242/300 Energy 496/500 System Corruption 2% Temperature Warning (388) Movement Walking (260) Ox2 Location -10/Mines Parts ------- > --- POWER (1) -------- Ion Engine > --- PROPULSION (2) --- Aluminum Leg > --- UTILITY (2) ------ Small Storage Unit High-capacity Battery > --- WEAPON (2) ------- Medium Laser Slug Cannon > --- INVENTORY (8) ---- Wheel Compact Wheel Seismic Detector Medium Laser Particle Gun Mining Claw Peak State ------------ > --- POWER ------------ Ion Engine > --- PROPULSION ------- Aluminum Leg Aluminum Leg > --- UTILITY ---------- Small Storage Unit High-capacity Battery > --- WEAPON ----------- Medium Laser Slug Cannon > --- INVENTORY -------- Wheel Compact Wheel Seismic Detector Medium Laser Particle Gun Mining Claw [Rating: 10] Favorites ----------- Power Ion Engine Engine Ion Engine Propulsion Aluminum Leg Leg Aluminum Leg Utility Small Storage Unit Device Seismic Detector Storage Small Storage Unit Protection Backup Plating I Weapon Medium Laser Energy Gun Medium Laser Ballistic Cannon Slug Cannon Slashing Weapon Mining Claw Build | -11 -10 -10 ------- Run | Yrd Mat Min Slots Evolved . | . . . Power . | . . . Propulsion . | . . . Utility . | . . . Weapon . | . . . Parts Attached 18 | 4 12 2 Power 3 | 1 1 1 Engine 3 | 1 1 1 Core . | . . . Reactor . | . . . Propulsion 4 | 2 2 . Treads . | . . . Leg 4 | 2 2 . Wheel . | . . . Hover . | . . . Flight . | . . . Utility 3 | 1 2 . Device 1 | . 1 . Storage 2 | 1 1 . Processor . | . . . Hackware . | . . . Protection . | . . . Artifact . | . . . Weapon 8 | . 7 1 Energy Gun 6 | . 6 . Energy Cannon . | . . . Ballistic Gun . | . . . Ballistic Cannon 1 | . . 1 Launcher . | . . . Special Weapon . | . . . Impact Weapon . | . . . Slashing Weapon 1 | . 1 . Piercing Weapon . | . . . Special Melee Weapon . | . . . Unidentified Prototypes . | . . . Parts Lost 7 | . 4 3 Power 1 | . . 1 Propulsion 3 | . 1 2 Utility 1 | . 1 . Weapon 2 | . 2 . Highest Loss Streak 3 | . 3 1 To Critical Strikes . | . . . Average Backups 6 | 5 7 6 Power . | . . . Propulsion 3 | 2 4 2 Utility . | . . 1 Weapon 2 | 2 1 2 Tool/Special . | . . . Unused Backups 6 | . 4 2 Power . | . . . Propulsion 4 | . 2 2 Utility 1 | . 1 . Weapon 1 | . 1 . Tool/Special . | . . . Average Slot Usage (%) 95 | . 97 93 Engine 13 | . 14 13 Leg 24 | . 27 21 Storage 24 | . 22 28 Protection 1 | . 3 . Energy Gun 24 | . 26 23 Ballistic Cannon 2 | . . 4 Peak Build Rating 10 | 4 8 10 Average Rating 7 | 3 7 7 On Entrance 3 | . 4 7 Avg Prop Armor Cover (%) . | . . . Naked Turns . | . . . Heaviest Build 23 | 8 19 23 Greatest Support 20 | 20 20 20 Greatest Overweight (x) 1 | . 1 1 Average Overweight (x) . | . . . Largest Inventory Capacity 8 | 8 8 8 Average Capacity 7 | 6 8 8 Most Carried 8 | 8 8 7 Average Carried 6 | 5 7 6 Final Capacity 8 | 8 8 8 Final Carried 8 | 8 7 6 Class Distribution -------------------- 100% | Mutant Dominant Class ---------------- Mutant | -10/Materials Mutant | -10/Mines Resources | -11 -10 -10 ----------- Run | Yrd Mat Min Matter Collected 477 | 240 123 114 Remotely . | . . . Salvage Created 667 | . 429 238 Parts 25 | . 12 13 Haulers Intercepted 2 | . 2 . Recyclers Shooed . | . . . Parts Field Recycled . | . . . Retrieved Matter . | . . . Parts Self-Destructed . | . . . Prevented . | . . . Parts Restored . | . . . Kills | -11 -10 -10 ------- Run | Yrd Mat Min Combat Hostiles Destroyed 15 | . 6 9 Melee 1 | . . 1 Guns 12 | . 4 8 AOE 2 | . 2 . Classes Destroyed 4 | . 3 1 Hauler 2 | . 2 . Watcher 1 | . 1 . Swarmer 6 | . . 6 Grunt 9 | . 6 3 Best Kill Streak 3 | . 2 3 Combat Bots Only 3 | . 2 3 Max Kills in Single Turn 1 | . 1 1 Gunslinging . | . . . Exploded 1 | . 1 . Melee 1 | . . 1 Uniques/NPCs Destroyed . | . . . Combat | -11 -10 -10 -------- Run | Yrd Mat Min Hostile Shots Fired 146 | . 44 102 Missed 40 | . 14 26 Hits 106 | . 30 76 Projectile 106 | . 30 76 Critical Strikes 2 | . 1 1 Damage Taken 1156 | . 417 739 Core 250 | . 45 205 Absorbed by Shields . | . . . Core Remaining (%) 100 | 100 . . Volleys Fired 71 | . 37 34 Largest 2 | . 2 2 Hottest 115 | . 115 100 Shots Fired 133 | . 67 66 Gun 123 | . 67 56 Cannon 10 | . . 10 Launcher . | . . . Special . | . . . Kinetic 10 | . . 10 Thermal 104 | . 48 56 Explosive . | . . . Electromagnetic 19 | . 19 . Robot Hit Streak 10 | . 10 5 Robot Miss Streak 5 | . 5 5 Penetration Max . | . . . Secondary Targets 2 | . 1 1 Max Gunslinging Chain 1 | . 1 1 Shots Hit Robots 71 | . 43 28 Core Hits 30 | . 16 14 Critical Kills . | . . . Critical Parts Destroyed . | . . . Critical Strikes 7 | . 4 3 Burn 7 | . 4 3 Melee Attacks 7 | . 2 5 Impact . | . . . Slashing 7 | . 2 5 Piercing . | . . . Sneak Attacks 1 | . 1 . Combat Hostiles 1 | . 1 . Follow-up Attacks . | . . . Damage Inflicted 1150 | . 737 413 Guns 906 | . 593 313 Cannons 53 | . . 53 Explosions 96 | . 96 . Melee 95 | . 48 47 Ramming . | . . . Kinetic 53 | . . 53 Thermal 813 | . 500 313 Explosive . | . . . Electromagnetic 189 | . 189 . Impact . | . . . Slashing 95 | . 48 47 Piercing . | . . . Highest Corruption 2 | . 2 2 Average Corruption 2 | . 2 2 Corruption Purged . | . . . Corruption Blocked . | . . . Effects 24 | . 14 10 Message Errors 4 | . 2 2 Matter Fused 9 | . 5 4 Heat Flow Errors 2 | . 2 . Parts Rejected 2 | . 2 . Data Loss (minor) 1 | . . 1 Data Loss (major) 1 | . 1 . Alerts 2 | . 1 1 Weapon Failures 3 | . 1 2 Overload Shots . | . . . Overflow Damage 40 | . 30 10 Projectiles 10 | . . 10 Explosions 30 | . 30 . Melee . | . . . Knockbacks 2 | . . 2 Impact . | . . . Kinetic 2 | . . 2 Secondary . | . . . Self-Inflicted Damage 37 | . 37 . Shots 1 | . 1 . Rammed . | . . . Targets Rammed . | . . . Kicked . | . . . Crushed . | . . . Highest Temperature 400 | . 400 379 Average Temperature 110 | . 101 121 Received Heat Transfer 453 | . 237 216 Effects 2 | . 2 . Energy Bleed 1 | . 1 . Short Circuit 1 | . 1 . Siege Activations . | . . . Martial Activations . | . . . Shielding Activations . | . . . Robots Disrupted . | . . . Combat Hostiles . | . . . Robots Corrupted . | . . . Combat Hostiles . | . . . Parts Fried . | . . . Impact Corruptions . | . . . Robots Melted . | . . . Combat Hostiles . | . . . Parts Melted 7 | . 5 2 Heat Transferred 2603 | . 1456 1147 Parts Sabotaged . | . . . Parts Stolen . | . . . Parts Stripped . | . . . Power Chain Reactions 2 | . 2 . Alert | -11 -10 -10 ------- Run | Yrd Mat Min Maximum Alert Level . | . . . Low Security (%) 100 | 100 100 100 Level 1 . | . . . Level 2 . | . . . Level 3 . | . . . Level 4 . | . . . Level 5 . | . . . High Security . | . . . Max Security . | . . . Peak Influence 75 | . 75 70 Initial . | . . . Average 15 | . 15 16 Influence Increases 520 | . 291 229 Destroy 0b10 Robot/C 300 | . 120 180 Destroy 0b10 Robot/NC 15 | . 15 . Destroy Leader 66 | . 36 30 Successful Hack 14 | . 14 . Disable Machine 30 | . 15 15 Destroy Structure 5 | . 1 4 Lose Combat Pursuer 90 | . 90 . Influence Decreases 497 | . 291 206 Time Decay 437 | . 251 186 Lost Part 60 | . 40 20 Squads Dispatched . | . . . Investigation . | . . . Extermination . | . . . Reinforcement . | . . . Assault . | . . . Garrison . | . . . Intercept . | . . . Searches Triggered . | . . . Construction Impeded . | . . . Haulers Reinforced . | . . . Active Scanning Responses . | . . . Cargo Convoy Interrupts . | . . . Stealth | -11 -10 -10 --------- Run | Yrd Mat Min Distress Signals . | . . . Communications Jammed . | . . . Distress Signals . | . . . Times Spotted 29 | . 19 10 Peak Tracking Total 4 | . 4 3 Tactical Retreats 6 | . 6 . Traps | -11 -10 -10 ------- Run | Yrd Mat Min Traps Triggered 1 | . 1 . Indirectly . | . . . Trap Hack Attempts . | . . . Triggered . | . . . Disarmed . | . . . Reprogrammed . | . . . Reused . | . . . Traps Extracted . | . . . Installed . | . . . Triggered . | . . . Machines | -11 -10 -10 ---------- Run | Yrd Mat Min Machines Disabled 2 | . 1 1 Max in Single Turn 1 | . 1 1 Machines Repaired . | . . . Machines Dismantled . | . . . Machines Sabotaged . | . . . Overloaded Fab Kills . | . . . Hacking | -11 -10 -10 --------- Run | Yrd Mat Min Machines Accessed 6 | . 6 . Terminals 5 | . 5 . Fabricators . | . . . Repair Stations 1 | . 1 . Recycling Units . | . . . Scanalyzers . | . . . Garrison Access . | . . . Total Hacks 13 | . 13 . Successful 7 | . 7 . Failed 6 | . 6 . Catastrophic . | . . . Database Lockouts . | . . . Manual . | . . . Terminals 11 | . 11 . Fabricators . | . . . Repair Stations 2 | . 2 . Recycling Units . | . . . Scanalyzers . | . . . Garrison Access . | . . . Terminal Hacks 6 | . 6 . Prototype ID Bank 2 | . 2 . Emergency Access Points 1 | . 1 . Locate Traps 2 | . 2 . Zone Layout 1 | . 1 . Fabricator Hacks . | . . . Repair Station Hacks 1 | . 1 . Refit 1 | . 1 . Recycling Unit Hacks . | . . . Scanalyzer . | . . . Garrison Access Hacks . | . . . Unauthorized Hacks . | . . . Terminals . | . . . Fabricators . | . . . Repair Stations . | . . . Recycling Units . | . . . Scanalyzers . | . . . Garrison Access . | . . . Data Cores Recovered . | . . . Used . | . . . Hacking Detections 3 | . 3 . Full Trace Events . | . . . Feedback Events . | . . . Feedback Blocked . | . . . Robot Schematics Acquired . | . . . Robots Built . | . . . Authchips . | . . . Time . | . . . Total Robot Build Rating . | . . . Part Schematics Acquired . | . . . Parts Built . | . . . Authchips . | . . . Time . | . . . Total Part Build Rating . | . . . Part Studies Acquired . | . . . Parts Repaired . | . . . Time . | . . . Parts Recycled . | . . . Recycled Matter . | . . . Retrieved Matter . | . . . Retrieved Components . | . . . Parts Scanalyzed . | . . . Part Schematics Acquired . | . . . Parts Damaged . | . . . Bothacking | -11 -10 -10 ------------ Run | Yrd Mat Min Used RIF Installer . | . . . Robots Hacked . | . . . Non-combat . | . . . Combat . | . . . Robot Hacks Applied . | . . . Relay Couplers Released . | . . . Fabnet Peak Effective % . | . . . Robots Rewired . | . . . Allies Hacked . | . . . Hacks Repelled . | . . . Allies | -11 -10 -10 -------- Run | Yrd Mat Min Total Allies . | . . . Largest Group . | . . . Highest-Rated Group . | . . . Highest-Rated Ally . | . . . Total Orders . | . . . Ally Attacks . | . . . Total Damage . | . . . Kills . | . . . Allies Corrupted . | . . . Allies Melted . | . . . Intel | -11 -10 -10 ------- Run | Yrd Mat Min Active Infowar (turns) 74 | . 74 . Seismic 74 | . 74 . Robot Analysis Total . | . . . Derelict Logs Recovered 1 | . . 1 Drone Launches . | . . . Drone Recoveries . | . . . Exploration | -11 -10 -10 ------------- Run | Yrd Mat Min Turns Passed 1922 | 79 972 871 Spaces Moved 902 | 61 560 281 Core 13 | 13 . . Treads . | . . . Legs 889 | 48 560 281 Wheels . | . . . Hover . | . . . Flight . | . . . Fastest Speed 50 | 50 120 120 Average Speed 132 | 105 121 160 Slowest Speed 190 | 120 190 190 Overloaded Moves . | . . . Propulsion Burnouts . | . . . Robots Hopped . | . . . Potential Cave-ins . | . . . Cave-ins Triggered . | . . . Exploration Rate (%) 53 | 4 86 71 Regions Visited 2 Branch Regions 1 Pre-discovered Areas . | . . . Known Exits Taken . | . . . Unknown Exits Taken 2 | 1 1 . Scrap Searched 3 | . . 3 Spaces Dug . | . . . Terrain Destroyed 4 | . . 4 Melee . | . . . Projectile 4 | . . 4 AOE . | . . . Terrain Rammed . | . . . Walls Destroyed . | . . . Machines Disabled . | . . . Actions | -11 -10 -10 --------- Run | Yrd Mat Min Total 1481 | 76 781 624 Wait 448 | . 150 298 Move 900 | 60 559 281 Hop . | . . . Pick Up 26 | 12 13 1 Fast Attach . | . . . Attach 14 | 4 8 2 Detach . | . . . Swap 9 | . 6 3 Drop 6 | . 6 . Fire 71 | . 37 34 Melee 7 | . 2 5 Ram . | . . . Kick . | . . . Crush . | . . . Escape Stasis . | . . . Rewire . | . . . Trap . | . . . Miscellaneous . | . . . Route ------- -11/Scrapyard -10/Materials (discovered 5 exits: [*Mat x2] / [*Min x2] / [*Sub]) -10/Mines (discovered 2 exits: [*Mat x2]) History --------- Turn | Location | Event 6 | -11/Scrapyard | Discovered new exit (range 16) 80 | -11/Scrapyard | Entered Materials 249 | -10/Materials | Discovered new exit (range 5) 328 | -10/Materials | Build established: Mutant 347 | -10/Materials | Discovered new exit (range 6) 395 | -10/Materials | Lost 3 parts (1n1u1w) 642 | -10/Materials | Discovered new exit (range 4) 654 | -10/Materials | Discovered new exit (range 16) 897 | -10/Materials | Discovered new exit (range 5) 1052 | -10/Materials | Entered Mines 1070 | -10/Mines | Discovered new exit (range 11) 1074 | -10/Mines | Discovered new exit (range 15) 1129 | -10/Mines | Core integrity fell below 50% 1499 | -10/Mines | Core integrity fell below 20% 1528 | -10/Mines | Learned 4 Materials zone layouts 1634 | -10/Mines | A weapon hastily lodged in a ceiling crevice suddenly fell to the ground 1923 | -10/Mines | Destroyed by G-47 Trooper with Particle Gun Last Messages --------------- 01746_ A derelict is hurriedly installing traps. 01748_ HS-M3Z(g): "Hehe, this'll put a wrench in their mining defense operations..." 01748_ HS-M3Z(g) slips into the shadows. 01814_ System corrupted: Matter fused (-9). 01898_ Core Extractor disabled. 01904_ G-47 Trooper knocked back. 01908_ U-05 Engineer builds a Wall. 01916_ Critical hit (Burn: +37). 01918_ Aluminum Leg destroyed. 01918_ U-05 Engineer builds a Wall. 01919_ G-34 Mercenary suffers critical hit (Burn). 01919_ Ion Engine melted. 01919_ Sml. Laser melted. 01919_ G-34 Mercenary destroyed. 01919_ Destroyed Lgt. Nuclear Core. 01919_ G-47 Trooper knocked back. 01921_ K-01 Serf collects debris. 01922_ Slug penetrates Wall. Map ----- +----------------------------------------------------+ | | | | | | | | | | | | | | | | | | | | | ?????????????????????????????????????????????????? | | ?????????####????????????????????????????????????? | | ???????### ##???????????????????????????????????? | | ??????## ##??????????????????????????????????? | | ??????# #??????????????????????????????????? | | ??????# ##?????????????????????????????????? | | ??????# ##????????????????????????????????? | | ??????## ### ##???????????????????????????????? | | ???????####?## #???????????????????????????????? | | ?????????????## #?????????######????????????????? | | ??????????????# ##??????? #????????????????? | | ??????????????# ##?????? #????????????????? | | ??????????????## #####?? " " #????????????????? | | ??????????????## ###%k"" #????????????????? | | ????????####?## ###g%"" ##???????????????? | | ???????## ### ### @ ;#???????????????? | | ???????# ##?# ##u### ####???????????????? | | ?####### ###??# ## #??????????????????????? | | ?# ^^ ##????# ## #??????????????????????? | | ?# ## # ##????? ## ??????????????????????? | | ?# # ##????? ###??????????????????????? | | ?#^# # ##?????# ?????????????????????????? | | ?# ^# #??????## ????????????????????????? | | ?# ^ ##???????# ????????????????????????? | | ##### ##?????#??## ????????????????????????? | | ##?????? #??# ???????????????????????? | | #?????? #?## #???????????????????????? | | #### #??????? ???#### ?????????????????????? | | ???## #??????? < ??????# ?????????????????????? | | ###### ##?????? ?????## ?????????????????????? | | # ### ##????? #????## #????????????????????? | | ##????# #????# ##??????????????????? | | #????# #????# ##?????????????????? | | #????# ###???# ###???????????????? | | ##??### #????# #####???????????? | | ######??## ##???# ##??????????? | | ###???????#% ##### ####???????? | | # ##?????????# #???????? | | # #??????????# ### #???????? | | # ??????????#### #### < ##?# #???????? | +----------------------------------------------------+ Best States ------------- Heat Dissipation 25 Energy Generation 10 Energy Capacity 500 Matter Stores 300 Matter Capacity 300 Sight Range 16 Terrain Scan Density 10 Armor Coverage 80 Evasion (%) 55 Item Schematics ----------------- None Robot Schematics ------------------ None Fabricated ------------ Nothing Repaired ---------- Nothing Studied --------- None Alien Tech Used ----------------- None Achievements -------------- None Challenges ------------ None Game ------ Seed GhostRagnarokKinecellerator Manual? 0 Play Time 00:19:55 Cumulative 11.5 hours Start 2026.07.28 @ 11:44:48 End 2026.07.28 @ 12:07:25 Sessions 1 Manual Loads 0 Difficulty Rogue Special Mode None Game No. 15 Rogue 15 Adventurer 0 Explorer 0 Win Type - Total 0 Types 0/0/0/0/0/0/0/0/0/0 Lore% 11 Gallery% 12 Achievement% 14 Wizard Run 0 Options --------- Layout 1 ASCII 0 Keyboard 0 Movement Mouse Keybinds 0 Fullscreen 1 Font 48/Smallcaps Map View 50x35 Zoom Use 0% Tactical HUD 1 Map Filters NONE Filters NONE Steam 1 RUN: 66ed680a-b639-490e-acf1-5bd71dbc5ce2